bitfinex-derivatives/quotes_BTCF0:USTF0_20250324
["timestamp","ask_amount","ask_price","bid_price","bid_amount"]
[1742801683752,0.11687741,86808.0,86807.0,0.4487846]
[1742801685348,0.00168,86808.0,86807.0,0.4487846]
[1742801685543,0.00017277,86816.0,86813.0,0.0575939]
[1742801685752,0.00189278,86816.0,86815.0,0.1151851]
[1742801685955,0.5335465,86832.0,86831.0,0.1151639]
[1742801686159,0.36196,86832.0,86831.0,0.1151639]
[1742801686348,0.36196,86832.0,86831.0,0.1158039]
[1742801686659,0.60483747,86832.0,86831.0,0.1158039]
[1742801686856,0.60483747,86832.0,86831.0,0.1733039]
[1742801687348,0.60683747,86832.0,86831.0,0.1733039]
[1742801687548,0.60683747,86832.0,86831.0,0.1890626]
[1742801687954,0.59431073,86832.0,86831.0,0.1890626]
[1742801688549,0.59631073,86832.0,86831.0,0.20149037]
[1742801689149,0.59631073,86832.0,86831.0,0.25839037]
[1742801690557,0.12034813,86832.0,86831.0,0.25839037]
[1742801690854,0.23551073,86832.0,86831.0,0.25839037]
[1742801691651,0.12034813,86832.0,86831.0,0.25839037]
[1742801692451,0.11918813,86832.0,86831.0,0.25839037]
[1742801692651,0.12034813,86832.0,86831.0,0.25839037]
[1742801692851,0.11918813,86832.0,86831.0,0.25839037]
[1742801693068,0.23435073,86832.0,86831.0,0.25839037]
[1742801693365,0.23551073,86832.0,86831.0,0.25839037]
[1742801694554,0.35221073,86832.0,86831.0,0.25839037]
[1742801697062,0.71301073,86832.0,86831.0,0.14322647]
[1742801697261,0.77131073,86832.0,86831.0,0.14322647]
[1742801697566,0.77131073,86832.0,86831.0,0.07056777]
[1742801697767,0.77131073,86832.0,86831.0,0.06992777]
[1742801697967,0.77131073,86832.0,86831.0,0.07052777]
[1742801698371,0.77131073,86832.0,86831.0,0.18569167]
[1742801698671,0.78371191,86832.0,86831.0,0.18569167]
[1742801699168,0.78371191,86832.0,86831.0,0.1732639]
[1742801700867,0.78371191,86832.0,86831.0,0.0581]
[1742801701066,0.1151665,86829.0,86828.0,0.1776671]
[1742801701266,0.1163265,86829.0,86828.0,0.1782679]
[1742801701760,0.23149207,86829.0,86828.0,0.2371679]
[1742801702362,0.23249207,86829.0,86828.0,0.2371679]
[1742801703168,0.23249207,86829.0,86828.0,0.122]
[1742801703467,0.23349207,86829.0,86828.0,0.2371679]
[1742801703670,0.11832557,86829.0,86828.0,0.2371679]
[1742801703865,0.23349207,86829.0,86828.0,0.5979679]
[1742801704065,0.23353208,86829.0,86828.0,0.5979679]
[1742801704385,0.23353208,86829.0,86828.0,0.61287651]
[1742801704577,0.23353208,86829.0,86828.0,0.62556652]
[1742801707572,0.00320001,86829.0,86828.0,0.62556652]
[1742801707879,0.002,86829.0,86828.0,0.62556652]
[1742801709272,0.002,86829.0,86828.0,0.61065791]
[1742801712182,0.002,86829.0,86828.0,0.72953791]
[1742801712380,0.11572867,86840.0,86836.0,0.0575783]
[1742801712569,0.11572867,86840.0,86839.0,0.1151533]
[1742801712570,0.17446587,86840.0,86839.0,0.1151533]
[1742801712773,0.17446587,86840.0,86839.0,0.1157533]
[1742801713082,0.28963542,86840.0,86839.0,0.1157533]
[1742801713885,0.17747952,86840.0,86839.0,0.1157533]
[1742801714085,0.11990232,86840.0,86839.0,0.1157533]
[1742801714599,0.12290232,86840.0,86839.0,0.1157533]
[1742801715181,0.12290232,86840.0,86839.0,0.12865994]
[1742801715378,0.12390232,86840.0,86839.0,0.12865994]
[1742801716081,0.12090232,86840.0,86839.0,0.12865994]
[1742801717772,0.11690232,86840.0,86839.0,0.12865994]
[1742801717978,0.11574232,86840.0,86839.0,0.12865994]
[1742801718185,0.11690232,86840.0,86839.0,0.12865994]
[1742801719984,0.17460232,86840.0,86839.0,0.12865994]
[1742801720287,0.28975432,86840.0,86839.0,0.12865994]
[1742801721888,0.35235432,86840.0,86839.0,0.12865994]
[1742801722687,0.23720232,86840.0,86839.0,0.12865994]
[1742801722876,0.11690232,86840.0,86839.0,0.12865994]
[1742801723482,0.11690232,86840.0,86839.0,0.26076198]
[1742801723680,0.00173277,86840.0,86839.0,0.26076198]
[1742801724085,0.00057277,86840.0,86839.0,0.26076198]
[1742801726592,0.11572477,86840.0,86839.0,0.26076198]
[1742801726782,0.11883277,86840.0,86839.0,0.26076198]
[1742801726984,0.11767277,86840.0,86839.0,0.26076198]
[1742801727595,0.11883277,86840.0,86839.0,0.26076198]
[1742801730190,0.057572,86846.0,86845.0,0.1151453]
[1742801730397,0.058372,86846.0,86845.0,0.1157453]
[1742801730987,0.17352696,86846.0,86845.0,0.13054734]
[1742801731183,0.17352696,86846.0,86845.0,0.24844734]
[1742801731395,0.17552696,86846.0,86845.0,0.24844734]
[1742801731988,0.17552696,86846.0,86845.0,0.2336453]
[1742801732392,0.17752696,86846.0,86845.0,0.2336453]
[1742801733397,0.17752696,86846.0,86845.0,0.24843422]
[1742801733895,0.11995496,86846.0,86845.0,0.24843422]
[1742801734194,0.0048,86846.0,86845.0,0.60923422]
[1742801734506,0.004,86846.0,86845.0,0.60923422]
[1742801734802,0.0048,86846.0,86845.0,0.60923422]
[1742801735003,8e-05,86848.0,86847.0,0.1151427]
[1742801735204,0.00017277,86854.0,86847.0,0.0006]
[1742801735402,0.00017277,86854.0,86853.0,0.4759347]
[1742801735699,0.00017277,86854.0,86853.0,0.4765347]
[1742801736003,0.00017277,86854.0,86853.0,0.501423]
[1742801736394,0.00081277,86854.0,86853.0,0.501423]
[1742801736695,0.00481277,86854.0,86853.0,0.501423]
[1742801737301,0.12161277,86854.0,86853.0,0.501423]
[1742801737702,0.11761277,86854.0,86853.0,0.619463]
[1742801737901,0.12461277,86854.0,86853.0,0.619463]
[1742801741711,0.06571277,86854.0,86853.0,0.619463]
[1742801741907,0.06507277,86854.0,86853.0,0.619463]
[1742801742210,0.06567278,86854.0,86853.0,0.619463]
[1742801742505,0.00777278,86854.0,86853.0,0.619463]
[1742801743299,0.00717277,86854.0,86853.0,0.619463]
[1742801743502,0.00785277,86854.0,86853.0,0.619463]
[1742801743702,0.00717277,86854.0,86853.0,0.619463]
[1742801743903,0.00781277,86854.0,86853.0,0.60467408]
[1742801749812,0.00781277,86854.0,86853.0,0.66627408]
[1742801750215,0.12294617,86854.0,86853.0,0.66627408]
[1742801750411,0.18174617,86854.0,86853.0,0.66627408]
[1742801750606,0.06661277,86854.0,86853.0,0.66627408]
[1742801750807,0.06661277,86854.0,86853.0,0.72457408]
[1742801751304,0.18174617,86854.0,86853.0,0.72457408]
[1742801752809,0.18174617,86854.0,86853.0,0.7144747]
[1742801756320,0.18174617,86854.0,86853.0,0.75388277]
[1742801756900,0.18174617,86854.0,86853.0,0.52070807]
[1742801757105,0.115148,86843.0,86842.0,0.11532207]
[1742801757301,0.115948,86843.0,86842.0,0.11604207]
[1742801757616,0.115868,86843.0,86842.0,0.11604207]
[1742801757806,0.2310044,86843.0,86842.0,0.17644207]
[1742801758510,0.2930044,86843.0,86842.0,0.23734207]
[1742801759316,0.2940044,86843.0,86842.0,0.23734207]
[1742801760016,0.30415011,86843.0,86842.0,0.23734207]
[1742801760213,0.30515011,86843.0,86842.0,0.23734207]
[1742801762004,0.2950044,86843.0,86842.0,0.23734207]
[1742801762209,0.00272,86843.0,86842.0,0.23734207]
[1742801762407,0.117148,86843.0,86842.0,0.29634207]
[1742801762917,0.117868,86843.0,86842.0,0.29634207]
[1742801763518,0.180168,86843.0,86842.0,0.29634207]
[1742801763920,0.241968,86843.0,86842.0,0.29634207]
[1742801764120,0.117868,86843.0,86842.0,0.29634207]
[1742801764316,0.117148,86843.0,86842.0,0.29634207]
[1742801764510,0.117868,86843.0,86842.0,0.29634207]
[1742801764917,0.29171899,86843.0,86842.0,0.23734207]
[1742801769225,0.29171899,86843.0,86842.0,0.25214575]
[1742801771729,0.1151772,86821.0,86820.0,0.4183891]
[1742801771940,0.1151772,86821.0,86820.0,0.0581891]
[1742801772131,0.11613721,86821.0,86820.0,0.0581891]
[1742801772526,0.23131738,86821.0,86820.0,0.0006]
[1742801773034,0.29151738,86821.0,86820.0,0.1167785]
[1742801773219,0.35401738,86821.0,86820.0,0.1167785]
[1742801773927,0.23131738,86821.0,86820.0,0.1167785]
[1742801774122,0.11614018,86821.0,86820.0,0.1776785]
[1742801774439,0.00096001,86821.0,86820.0,0.1826785]
[1742801774628,0.11533927,86829.0,86828.0,0.1151679]
[1742801774827,0.00117277,86829.0,86828.0,0.4765679]
[1742801775124,0.00117277,86829.0,86828.0,0.5994679]
[1742801775525,0.00017277,86829.0,86828.0,0.60981392]
[1742801777533,0.00017277,86829.0,86828.0,0.61181392]
[1742801783939,0.00017277,86829.0,86828.0,0.62677289]
[1742801788140,0.00017277,86829.0,86828.0,0.61645085]
[1742801788329,0.00017277,86829.0,86828.0,0.62703306]
[1742801790745,0.00017277,86829.0,86828.0,0.65130711]
[1742801792148,0.1727273,86842.0,86832.0,0.0575808]
[1742801792442,0.05861521,86842.0,86841.0,0.1151506]
[1742801792648,0.00104001,86842.0,86841.0,0.1161106]
[1742801792840,0.23135886,86842.0,86841.0,0.1161106]
[1742801793035,0.23127886,86842.0,86841.0,0.2393106]
[1742801793241,0.11612956,86842.0,86841.0,0.25429355]
[1742801793441,0.23127886,86842.0,86841.0,0.25429355]
[1742801793741,0.11612956,86842.0,86841.0,0.25429355]
[1742801793938,0.00096001,86842.0,86841.0,0.25429355]
[1742801794247,8e-05,86843.0,86842.0,0.1151493]
[1742801794465,8e-05,86843.0,86842.0,0.2315493]
[1742801794638,0.00017277,86850.0,86849.0,0.11514]
[1742801794834,0.00017277,86850.0,86849.0,0.47594]
[1742801795039,0.0004,86856.0,86855.0,0.1151321]
[1742801795535,0.0004,86856.0,86855.0,0.1157321]
[1742801795849,0.0004,86856.0,86855.0,0.15538681]
[1742801796043,0.0004,86856.0,86855.0,0.27528681]
[1742801796755,0.1795,86856.0,86855.0,0.27528681]
[1742801797051,0.41072446,86856.0,86855.0,0.04025471]
[1742801797549,0.41072446,86856.0,86855.0,0.01558295]
[1742801797749,0.41072446,86856.0,86855.0,0.01498295]
[1742801797949,0.41572446,86856.0,86855.0,0.00068]
[1742801798349,0.47729036,86856.0,86855.0,0.1151321]
[1742801798546,0.47729036,86856.0,86855.0,0.1157721]
[1742801798948,0.47729036,86856.0,86855.0,0.00064]
[1742801799342,0.47729036,86856.0,86853.0,0.057567]
[1742801799343,0.1151334,86855.0,86854.0,0.1151333]
[1742801799545,0.11617341,86855.0,86854.0,0.1158133]
[1742801799750,0.23467341,86855.0,86854.0,0.1151333]
[1742801799946,0.23467341,86855.0,86854.0,0.1157333]
[1742801800251,0.34980716,86855.0,86854.0,0.1157333]
[1742801801350,0.35380716,86855.0,86854.0,0.1157333]
[1742801801652,0.35780716,86855.0,86854.0,0.1157333]
[1742801802245,0.24267376,86855.0,86854.0,0.1157333]
[1742801802450,0.00904001,86855.0,86854.0,0.2394333]
[1742801802651,0.008,86855.0,86854.0,0.2394333]
[1742801802856,0.00896001,86855.0,86854.0,0.2394333]
[1742801803258,0.00896001,86855.0,86854.0,0.28008322]
[1742801803847,0.00896001,86855.0,86854.0,0.64088322]
[1742801804060,0.008,86855.0,86854.0,0.64088322]
[1742801804359,0.009,86855.0,86854.0,0.64088322]
[1742801804556,0.008,86855.0,86854.0,0.64088322]
[1742801805250,0.00896001,86855.0,86854.0,0.64088322]
[1742801807458,0.008,86855.0,86854.0,0.64088322]
[1742801808963,0.008,86855.0,86854.0,0.65149327]
[1742801809980,0.00896001,86855.0,86854.0,0.65149327]
[1742801810366,0.072,86855.0,86854.0,0.65149327]
[1742801810682,0.07296001,86855.0,86854.0,0.65149327]
[1742801811277,0.00896001,86855.0,86854.0,0.65149327]
[1742801811978,0.008,86855.0,86854.0,0.65149327]
[1742801814574,0.008,86855.0,86854.0,0.76773327]
[1742801814774,0.00896001,86855.0,86854.0,0.76773327]
[1742801815171,0.008,86855.0,86854.0,0.76773327]
[1742801817284,0.0723,86855.0,86854.0,0.76773327]
[1742801817488,0.008,86855.0,86854.0,0.76773327]
[1742801818080,0.008,86855.0,86854.0,0.72708335]
[1742801818286,0.009,86855.0,86854.0,0.72708335]
[1742801821987,0.23926718,86855.0,86854.0,0.61084335]
[1742801822194,0.35976718,86855.0,86854.0,0.6002333]
[1742801822386,0.35976718,86855.0,86854.0,0.2394333]
[1742801822586,0.35976718,86855.0,86854.0,0.25007978]
[1742801825696,0.24463508,86855.0,86854.0,0.25007978]
[1742801825895,0.12413508,86855.0,86854.0,0.25007978]
[1742801826091,0.12413508,86855.0,86854.0,0.31427978]
[1742801827495,0.23926718,86855.0,86854.0,0.31427978]
[1742801827696,0.12413508,86855.0,86854.0,0.31427978]
[1742801828186,0.23926718,86855.0,86854.0,0.31427978]
[1742801828596,0.12413508,86855.0,86854.0,0.31427978]
[1742801829893,0.12413508,86855.0,86854.0,0.32911883]
[1742801830691,0.008,86855.0,86854.0,0.32911883]
[1742801830995,0.00017277,86864.0,86863.0,0.1151215]
[1742801831195,0.00121278,86864.0,86863.0,0.1158015]
[1742801831592,0.11633288,86864.0,86863.0,0.13064055]
[1742801831782,0.23145603,86864.0,86863.0,0.31234055]
[1742801831986,0.00121278,86864.0,86863.0,0.31234055]
[1742801832203,0.00017277,86864.0,86863.0,0.31234055]
[1742801832588,0.00517277,86864.0,86863.0,0.32301204]
[1742801833498,0.01117277,86864.0,86863.0,0.32301204]
[1742801833684,0.01213278,86864.0,86863.0,0.32301204]
[1742801837196,0.01217277,86864.0,86863.0,0.32301204]
[1742801837806,0.01117277,86864.0,86863.0,0.32301204]
[1742801837998,0.01213278,86864.0,86863.0,0.32301204]
[1742801843005,0.01117277,86864.0,86863.0,0.32301204]
[1742801843220,0.0613,86875.0,86863.0,0.32301204]
[1742801843221,0.0004,86872.0,86868.0,0.0575571]
[1742801843509,0.00136001,86872.0,86871.0,0.1151109]
[1742801843704,0.0004,86872.0,86871.0,0.13054995]
[1742801843902,0.1730337,86888.0,86884.0,0.1150923]
[1742801844198,0.00136001,86888.0,86887.0,0.1150897]
[1742801844401,0.00136001,86888.0,86887.0,0.1156897]
[1742801844917,0.1270912,86888.0,86887.0,0.1156897]
[1742801845412,0.1270912,86888.0,86887.0,0.12612857]
[1742801845598,0.1270912,86888.0,86887.0,0.14096762]
[1742801845804,0.2421795,86888.0,86887.0,0.14096762]
[1742801846312,0.2421795,86888.0,86887.0,0.12612857]
[1742801846714,0.2421795,86888.0,86887.0,0.1156897]
[1742801847709,0.23154165,86888.0,86887.0,0.1156897]
[1742801848013,0.1726834,86864.0,86863.0,0.1151175]
[1742801848212,0.1726834,86864.0,86863.0,0.1163175]
[1742801848517,0.1726834,86864.0,86863.0,0.13124445]
[1742801848716,0.28780655,86864.0,86863.0,0.25154445]
[1742801848921,0.28900656,86864.0,86863.0,0.25154445]
[1742801849218,0.29100656,86864.0,86863.0,0.25154445]
[1742801849719,0.29200656,86864.0,86863.0,0.25154445]
[1742801853716,0.29200656,86864.0,86863.0,0.01612695]
[1742801853914,0.29200656,86864.0,86863.0,0.01492695]
[1742801855422,0.1151241,86861.0,86860.0,0.1207]
[1742801855623,0.11632411,86861.0,86860.0,0.12138]
[1742801856214,0.23144726,86861.0,86860.0,0.12138]
[1742801856722,0.23244726,86861.0,86860.0,0.12138]
[1742801856920,0.23444726,86861.0,86860.0,0.1207]
[1742801857220,0.23444726,86861.0,86860.0,0.1213]
[1742801860233,0.59524726,86861.0,86860.0,0.1213]
[1742801860435,0.65494726,86861.0,86860.0,0.1213]
[1742801868750,0.65494726,86861.0,86860.0,0.2364254]
[1742801869441,0.65494726,86861.0,86860.0,0.1213]
[1742801871045,0.0575671,86854.0,86830.0,0.0575824]
[1742801871239,0.1151413,86848.0,86847.0,0.00110058]
[1742801871437,0.1164613,86848.0,86847.0,0.00178058]
[1742801871643,0.23160168,86848.0,86847.0,0.00046058]
[1742801871853,0.23160168,86848.0,86847.0,0.17620328]
[1742801872142,0.23160168,86848.0,86847.0,0.00106058]
[1742801872352,0.34980168,86848.0,86847.0,0.00246058]
[1742801872538,0.34980168,86848.0,86847.0,0.00446058]
[1742801872751,0.34980168,86848.0,86847.0,0.00506058]
[1742801873248,0.34980168,86848.0,86847.0,0.11820328]
[1742801873453,0.34980168,86848.0,86847.0,0.12020328]
[1742801873846,0.35080168,86848.0,86847.0,0.17880328]
[1742801874146,0.36143552,86848.0,86847.0,0.17880328]
[1742801874336,0.36143552,86848.0,86847.0,0.23790328]
[1742801874537,0.36143552,86848.0,86847.0,0.30020328]
[1742801875134,0.36143552,86848.0,86847.0,0.29820328]
[1742801875444,0.36243552,86848.0,86847.0,0.29820328]
[1742801875847,0.36243552,86848.0,86847.0,0.18306058]
[1742801877146,0.36243552,86848.0,86847.0,0.29820328]
[1742801877541,0.36243552,86848.0,86847.0,0.18306058]
[1742801877735,0.36243552,86848.0,86847.0,0.19835896]
[1742801879549,0.36243552,86848.0,86847.0,0.31350166]
[1742801880852,0.24423552,86848.0,86847.0,0.31350166]
[1742801881048,0.23360168,86848.0,86847.0,0.31350166]
[1742801889047,0.23360168,86848.0,86847.0,0.33787721]
[1742801889249,0.24413675,86848.0,86847.0,0.33787721]
[1742801889452,0.23360168,86848.0,86847.0,0.33787721]
[1742801892862,0.29270168,86848.0,86847.0,0.33787721]
[1742801893765,0.29270168,86848.0,86847.0,0.31350166]
[1742801894667,0.29270168,86848.0,86847.0,0.19835896]
[1742801894965,0.29270168,86848.0,86847.0,0.25290166]
[1742801896968,0.29270168,86848.0,86847.0,0.13775896]
[1742801897169,0.29270168,86848.0,86847.0,0.25290166]
[1742801897768,0.29270168,86848.0,86847.0,0.13775896]
[1742801898370,0.29270168,86848.0,86847.0,0.12246058]
[1742801899159,0.29270168,86848.0,86847.0,0.12186058]
[1742801899664,0.29270168,86848.0,86847.0,0.12246058]
[1742801900073,0.30225875,86848.0,86839.0,0.00017267]
[1742801900275,0.1151626,86832.0,86824.0,0.0614]
[1742801900465,0.59372261,86832.0,86825.0,0.0639]
[1742801900665,0.1151705,86826.0,86825.0,0.0639]
[1742801900866,0.1166905,86826.0,86825.0,0.0639]
[1742801901471,0.1151758,86822.0,86821.0,0.20653298]
[1742801901675,0.5936958,86822.0,86821.0,0.20653298]
[1742801902174,0.70586933,86822.0,86821.0,0.20653298]
[1742801902877,0.76876933,86822.0,86821.0,0.20653298]
[1742801903067,0.76876933,86822.0,86821.0,0.21053298]
[1742801903269,0.82836933,86822.0,86821.0,0.21053298]
[1742801903571,0.82836933,86822.0,86821.0,0.004]
[1742801903968,0.82536933,86822.0,86821.0,0.004]
[1742801904574,0.82536933,86822.0,86821.0,0.008]
[1742801906576,0.1151811,86818.0,86817.0,0.00017267]
[1742801906784,0.1166611,86818.0,86817.0,0.00017267]
[1742801907283,0.23183994,86818.0,86817.0,0.00017267]
[1742801907475,0.35723994,86818.0,86817.0,0.00017267]
[1742801908268,0.35723994,86818.0,86817.0,0.00117267]
[1742801908878,0.35723994,86818.0,86817.0,0.12817267]
[1742801909086,0.23183994,86818.0,86817.0,0.24335517]
[1742801910285,0.23183994,86818.0,86817.0,0.24735517]
[1742801910873,0.23183994,86818.0,86817.0,0.24635517]
[1742801911881,0.23183994,86818.0,86817.0,0.24435517]
[1742801914697,0.35303994,86818.0,86817.0,0.24435517]
[1742801916793,0.59263994,86818.0,86817.0,0.24435517]
[1742801916998,0.4774611,86818.0,86817.0,0.24435517]
[1742801917195,0.36228,86818.0,86817.0,0.24435517]
[1742801917396,0.4774611,86818.0,86817.0,0.24435517]
[1742801918802,0.36228,86818.0,86817.0,0.24435517]
[1742801919302,0.4774611,86818.0,86817.0,0.24435517]
[1742801920693,0.00148,86818.0,86817.0,0.24435517]
[1742801920904,8e-05,86819.0,86818.0,0.1151811]
[1742801921203,0.1152598,86819.0,86818.0,0.2392811]
[1742801922106,0.1167398,86819.0,86818.0,0.2392811]
[1742801922307,0.1167398,86819.0,86818.0,0.2412811]
[1742801922498,0.1152598,86819.0,86818.0,0.2412811]
[1742801922698,8e-05,86819.0,86818.0,0.2412811]
[1742801922904,0.1151697,86832.0,86831.0,0.1727425]
[1742801923111,0.127482,86832.0,86831.0,0.1727425]
[1742801923614,0.24266482,86832.0,86831.0,0.1727425]
[1742801923905,0.1151679,86829.0,86828.0,0.1151668]
[1742801924102,0.1166479,86829.0,86828.0,0.1151668]
[1742801924303,0.2423479,86829.0,86828.0,0.1151668]
[1742801924807,0.35751347,86829.0,86828.0,0.1151668]
[1742801925208,0.35851347,86829.0,86828.0,0.1151668]
[1742801926007,0.71931347,86829.0,86828.0,0.1151668]
[1742801926206,0.72031347,86829.0,86828.0,0.1151668]
[1742801929709,0.59461207,86829.0,86828.0,0.1151668]
[1742801929912,0.59461207,86829.0,86822.0,0.0575879]
[1742801930109,0.65219647,86829.0,86828.0,0.1151668]
[1742801931309,0.65119647,86829.0,86828.0,0.1151668]
[1742801931815,0.71549647,86829.0,86828.0,0.1151668]
[1742801932314,0.71649647,86829.0,86828.0,0.1151668]
[1742801932516,0.77979647,86829.0,86828.0,0.1151668]
[1742801934218,0.60132997,86829.0,86828.0,0.1151668]
[1742801934716,0.53702997,86829.0,86828.0,0.1151668]
[1742801936213,0.60132997,86829.0,86828.0,0.1151668]
[1742801936511,0.66332997,86829.0,86828.0,0.1151668]
[1742801936714,0.60132997,86829.0,86828.0,0.1151668]
[1742801936914,0.65891207,86829.0,86828.0,0.1151668]
[1742801938716,0.59461207,86829.0,86828.0,0.1151668]
[1742801939922,0.59461207,86829.0,86828.0,0.1761668]
[1742801940913,0.59461207,86829.0,86828.0,0.2389668]
[1742801947612,0.71481207,86829.0,86828.0,0.2389668]
[1742801949309,0.71481207,86829.0,86828.0,0.2389679]
[1742801950318,0.71481207,86829.0,86828.0,0.25363735]
[1742801953023,0.71481207,86829.0,86828.0,0.13846945]
[1742801953818,0.71481207,86829.0,86828.0,0.1238]
[1742801954326,0.71481207,86829.0,86828.0,0.2389679]
[1742801955517,0.71481207,86829.0,86828.0,0.1238]
[1742801955731,0.71481207,86829.0,86828.0,0.2389679]
[1742801956418,0.71481207,86829.0,86828.0,0.1238]
[1742801956727,0.71481207,86829.0,86828.0,0.2389679]
[1742801958231,0.71481207,86829.0,86828.0,0.1238]
[1742801960029,0.74024162,86829.0,86828.0,0.2389679]
[1742801960327,0.74024162,86829.0,86828.0,0.1238]
[1742801960623,0.71481207,86829.0,86828.0,0.1238]
[1742801961829,0.71481207,86829.0,86828.0,0.2389679]
[1742801962028,0.71481207,86829.0,86828.0,0.1238]
[1742801963014,0.74004712,86829.0,86828.0,0.1238]
[1742801966723,0.71481207,86829.0,86828.0,0.1238]
[1742801967530,0.74072655,86829.0,86828.0,0.1238]
[1742801967830,0.74072655,86829.0,86828.0,0.061]
[1742801968233,0.1151785,86820.0,86819.0,0.12]
[1742801968431,0.4774985,86820.0,86819.0,0.12]
[1742801968916,0.60382118,86820.0,86819.0,0.12]
[1742801969115,0.72852118,86820.0,86819.0,0.12]
[1742801970019,0.75463548,86820.0,86819.0,0.12]
[1742801970630,0.72852118,86820.0,86819.0,0.122]
[1742801972926,0.72852118,86820.0,86800.0,0.1626018]
[1742801972927,0.0575985,86806.0,86800.0,0.1626018]
[1742801973129,0.1727956,86806.0,86805.0,0.0635]
[1742801973319,0.1152024,86802.0,86801.0,0.0614]
[1742801973517,0.11676241,86802.0,86801.0,0.0614]
[1742801973923,0.11676241,86802.0,86801.0,0.1766037]
[1742801974329,0.23196779,86802.0,86801.0,0.2371037]
[1742801975029,0.24310679,86802.0,86801.0,0.2371037]
[1742801976134,0.24410679,86802.0,86801.0,0.2421037]
[1742801976334,0.24510679,86802.0,86801.0,0.2421037]
[1742801982038,0.11876539,86802.0,86801.0,0.2421037]
[1742801982227,0.00356001,86802.0,86801.0,0.2421037]
[1742801982536,0.00017277,86810.0,86806.0,0.0575982]
[1742801982740,0.11684447,86810.0,86809.0,0.1151931]
[1742801982940,0.11684447,86810.0,86809.0,0.2325931]
[1742801983136,0.11684952,86810.0,86809.0,0.2325931]
[1742801983339,0.23204122,86810.0,86809.0,0.2325931]
[1742801983531,0.11684447,86810.0,86809.0,0.1734931]
[1742801983841,0.23204122,86810.0,86809.0,0.1734931]
[1742801985231,0.23204122,86810.0,86809.0,0.1774931]
[1742801985640,0.23204122,86810.0,86809.0,0.2409931]
[1742801991544,0.29154122,86810.0,86809.0,0.2409931]
[1742801995962,0.29154122,86810.0,86809.0,0.1258]
[1742801996148,0.35064122,86810.0,86809.0,0.1258]
[1742801996352,0.35064122,86810.0,86809.0,0.2409931]
[1742801996563,0.35064122,86810.0,86809.0,0.1258]
[1742801996960,0.35064122,86810.0,86809.0,0.2409931]
[1742801997350,0.35064122,86810.0,86809.0,0.004]
[1742802002958,0.35064122,86810.0,86809.0,0.0678]
[1742802003460,0.71144122,86810.0,86809.0,0.0678]
[1742802003854,0.77424122,86810.0,86809.0,0.0678]
[1742802004362,0.47764952,86810.0,86809.0,0.0678]
[1742802004560,0.47764447,86810.0,86809.0,0.2457931]
[1742802004759,0.36245277,86810.0,86809.0,0.3073931]
[1742802006054,0.36245277,86810.0,86809.0,0.31818937]
[1742802006658,0.237169,86822.0,86821.0,0.1151772]
[1742802006869,0.23828901,86822.0,86821.0,0.1158572]
[1742802007068,0.17388901,86822.0,86821.0,0.1158572]
[1742802007269,0.17390397,86822.0,86821.0,0.1158572]
[1742802007869,0.17390397,86822.0,86821.0,0.1151772]
[1742802008064,0.17390397,86822.0,86821.0,0.1157772]
[1742802008371,0.00112001,86822.0,86821.0,0.1157772]
[1742802009463,0.00112001,86822.0,86821.0,0.13052981]
[1742802009968,0.11629581,86822.0,86821.0,0.13052981]
[1742802012267,0.23147465,86822.0,86821.0,0.01535261]
[1742802012472,0.35737465,86822.0,86821.0,0.01475261]
[1742802012663,0.42097465,86822.0,86821.0,0.01475261]
[1742802013266,0.35737465,86822.0,86821.0,0.12992981]
[1742802013465,0.23147465,86822.0,86821.0,0.13052981]
[1742802014371,0.35477465,86822.0,86821.0,0.13052981]
[1742802014877,0.35477465,86822.0,86821.0,0.1157772]
[1742802016168,0.35477465,86822.0,86821.0,0.13063122]
[1742802016570,0.35477465,86822.0,86821.0,0.01545402]
[1742802016869,0.35477465,86822.0,86821.0,0.01485402]
[1742802017077,0.35477465,86822.0,86821.0,0.13071122]
[1742802017274,0.35477465,86822.0,86821.0,0.13003122]
[1742802019573,0.35477465,86822.0,86821.0,0.13063122]
[1742802020177,0.23147465,86822.0,86821.0,0.13063122]
[1742802021071,0.23147465,86822.0,86821.0,0.19253122]
[1742802023674,0.11629885,86822.0,86821.0,0.19253122]
[1742802023880,0.11629581,86822.0,86821.0,0.19253122]
[1742802024182,0.11629581,86822.0,86821.0,0.20328574]
[1742802025478,0.11629581,86822.0,86821.0,0.19253122]
[1742802030281,0.11629581,86822.0,86821.0,0.07735402]
[1742802030485,0.40857465,86822.0,86821.0,0.19253122]
[1742802032779,0.40857465,86822.0,86821.0,0.1776772]
[1742802033183,0.40857465,86822.0,86821.0,0.0006]
[1742802033383,0.40857465,86822.0,86820.0,0.173578]
[1742802033384,0.1151772,86821.0,86820.0,0.173578]
[1742802033582,0.11621721,86821.0,86820.0,0.174258]
[1742802033783,0.23961721,86821.0,86820.0,0.174258]
[1742802033991,0.23961721,86821.0,86820.0,0.00068]
[1742802034287,0.35479605,86821.0,86820.0,0.01494985]
[1742802034881,0.35479605,86821.0,86820.0,0.13112835]
[1742802035079,0.35479605,86821.0,86820.0,0.13180835]
[1742802035289,0.35479605,86821.0,86820.0,0.1168585]
[1742802035490,0.35479605,86821.0,86820.0,0.1178585]
[1742802036791,0.71559605,86821.0,86820.0,0.1178585]
[1742802037794,0.35479605,86821.0,86820.0,0.1178585]
[1742802037996,0.71559605,86821.0,86820.0,0.1178585]
[1742802039087,0.71559605,86821.0,86820.0,0.13289941]
[1742802040897,0.35479605,86821.0,86820.0,0.13289941]
[1742802041087,0.71559605,86821.0,86820.0,0.13289941]
[1742802045092,0.83159605,86821.0,86820.0,0.13289941]
[1742802051707,0.83159605,86821.0,86820.0,0.13221941]
[1742802051896,0.83159605,86821.0,86820.0,0.13325941]
[1742802052096,0.83159605,86821.0,86820.0,0.01808091]
[1742802052503,0.83159605,86821.0,86820.0,0.25885941]
[1742802055010,0.83159605,86821.0,86820.0,0.01808091]
[1742802055194,0.83159605,86821.0,86813.0,0.00017277]
[1742802055195,0.1151864,86815.0,86814.0,0.115186]
[1742802055398,0.11622641,86815.0,86814.0,0.178786]
[1742802055604,0.11622641,86815.0,86814.0,0.25166149]
[1742802055910,0.23140658,86815.0,86814.0,0.25166149]
[1742802056105,0.23140528,86815.0,86814.0,0.25166149]
[1742802056501,0.23140528,86815.0,86814.0,0.25366149]
[1742802056702,0.23140528,86815.0,86814.0,0.25466149]
[1742802066212,8e-05,86816.0,86815.0,0.1151851]
[1742802066414,0.3608,86839.0,86825.0,0.0575853]
[1742802066614,0.4759682,86828.0,86827.0,0.1151692]
[1742802067009,0.4759682,86828.0,86827.0,0.13004469]
[1742802067210,0.59115633,86828.0,86827.0,0.24834469]
[1742802067410,0.59175634,86828.0,86827.0,0.24834469]
[1742802067609,0.59115633,86828.0,86827.0,0.24834469]
[1742802067911,0.59215633,86828.0,86827.0,0.24834469]
[1742802068113,0.60313925,86828.0,86827.0,0.24834469]
[1742802068418,0.66503925,86828.0,86827.0,0.24834469]
[1742802069311,0.72363925,86828.0,86827.0,0.24834469]